bitfinex/quotes_ETHUSD_20251010
["timestamp","ask_amount","ask_price","bid_price","bid_amount"]
[1760132014491,0.2309,3738.1,3719.8,14.5]
[1760132014719,0.17747838,3732.9,3714.6,1.23]
[1760132014990,0.4444,3732.8,3714.7,0.29851003]
[1760132015215,0.4444,3732.8,3714.6,1.23]
[1760132015424,0.99999999,3731.1,3714.6,2.46]
[1760132015594,1.38746966,3730.9,3714.6,2.46]
[1760132015791,0.4444,3734.1,3716.2,14.5]
[1760132015987,5.3724,3730.9,3714.6,2.46]
[1760132016220,0.4444,3730.8,3714.6,2.46]
[1760132016431,0.4444,3730.7,3714.6,2.46]
[1760132016633,0.4444,3730.6,3714.6,2.46]
[1760132016840,1.39299289,3730.4,3714.6,3.69]
[1760132017054,0.69454527,3730.3,3714.6,3.69]
[1760132017346,0.00396497,3730.1,3714.6,3.64]
[1760132017513,0.68543448,3730.0,3714.6,3.64]
[1760132017706,0.4444,3729.9,3714.6,3.64]
[1760132017906,0.4444,3729.8,3714.6,3.64]
[1760132018111,1.30772324,3729.6,3714.6,3.64]
[1760132018311,1.36302203,3729.4,3714.6,4.87]
[1760132018533,1.34868355,3729.2,3714.6,4.72978453]
[1760132018738,1.33015862,3729.0,3714.6,4.72578453]
[1760132019038,1.38644327,3728.8,3714.6,4.72178453]
[1760132019242,0.4444,3728.7,3714.6,4.72178453]
[1760132019534,0.30371136,3728.6,3714.6,4.72278453]
[1760132019738,5.3733,3728.6,3714.6,5.95278453]
[1760132019939,0.17951246,3728.5,3714.6,5.95278453]
[1760132020140,0.00394948,3728.4,3714.6,5.95278453]
[1760132020338,0.99999999,3728.3,3714.6,5.95278453]
[1760132020648,5.3733,3728.3,3714.6,5.95278453]
[1760132020822,5.3733,3728.3,3714.7,0.1407]
[1760132021025,0.1890861,3728.2,3714.6,5.95278453]
[1760132021249,100.16666944,3735.4,3714.6,7.18278453]
[1760132021552,0.4444,3735.3,3714.6,7.18278453]
[1760132021754,0.61244811,3735.2,3714.6,7.18278453]
[1760132021963,1.37524018,3735.0,3714.6,7.18278453]
[1760132022130,1.34889487,3734.8,3714.7,0.29175622]
[1760132022314,1.34882912,3734.6,3714.8,0.1407]
[1760132022514,0.4444,3734.5,3714.9,0.2503034]
[1760132023239,1.35771546,3734.4,3714.9,0.2503034]
[1760132023439,0.4444,3734.3,3714.9,0.2503034]
[1760132023638,5.814,3734.3,3715.0,0.39645256]
[1760132023811,5.814,3734.3,3715.1,0.27310544]
[1760132024016,1.36839476,3738.3,3715.7,14.5]
[1760132024220,0.14664425,3738.0,3715.8,1.42845404]
[1760132024552,1.3205448,3738.7,3715.9,0.087]
[1760132024754,0.002,3739.7,3716.0,1.38456994]
[1760132024916,0.002,3739.7,3716.1,0.09098987]
[1760132025247,0.002,3739.7,3717.3,100.0]
[1760132025449,0.002,3739.7,3717.4,0.56878238]
[1760132025627,0.002,3739.7,3717.5,0.09094957]
[1760132025825,0.4444,3746.4,3717.6,0.15678893]
[1760132026152,0.80537453,3745.0,3717.7,1.18728049]
[1760132026316,0.80537453,3745.0,3717.8,100.09094391]
[1760132026317,6.16447453,3745.0,3717.8,100.09094391]
[1760132026522,1.33917142,3748.4,3731.7,14.5]
[1760132026752,0.80452896,3749.1,3731.7,14.5]
[1760132027044,1.33917142,3748.4,3731.8,0.087]
[1760132027243,0.25369474,3747.6,3731.8,0.087]
[1760132027592,5.60169474,3747.6,3731.8,0.087]
[1760132027774,5.348,3747.6,3731.8,0.087]
[1760132027918,5.348,3747.6,3731.9,0.20092966]
[1760132028238,5.348,3747.6,3732.0,0.087]
[1760132028416,0.71374811,3747.5,3731.8,1.23]
[1760132028617,0.1336,3739.4,3737.8,0.1336]
[1760132028832,0.4747,3743.4,3731.8,1.23]
[1760132029033,0.99999999,3744.4,3731.9,0.087]
[1760132029424,0.80509571,3746.5,3731.9,0.087]
[1760132029619,0.99999999,3744.4,3732.0,14.5]
[1760132029930,0.2161,3749.3,3732.1,0.087]
[1760132030132,0.99999999,3744.4,3732.1,0.34131309]
[1760132030343,0.4747,3744.3,3732.2,0.087]
[1760132030533,0.99999999,3744.4,3732.2,0.087]
[1760132030728,0.4747,3744.3,3731.9,14.5]
[1760132030925,0.4747,3744.2,3732.0,0.087]
[1760132031131,0.4747,3744.2,3731.8,2.46]
[1760132031132,0.80465627,3747.2,3732.1,0.28611347]
[1760132031374,0.4747,3750.3,3732.2,0.35087777]
[1760132031576,1.31736091,3748.8,3732.2,0.35087777]
[1760132031900,1.3075861,3749.4,3732.3,0.087]
[1760132032068,0.4747,3747.6,3732.3,0.28396822]
[1760132032256,1.31736091,3748.8,3732.4,0.087]
[1760132032456,1.31736091,3748.8,3736.4,14.5]
[1760132032657,0.14308485,3747.6,3736.5,0.43455275]
[1760132032865,0.4747,3748.7,3736.6,0.087]
[1760132033066,1.31736091,3748.8,3736.7,0.087]
[1760132033258,1.34008987,3750.0,3736.8,0.087]
[1760132033690,1.34008987,3750.0,3736.9,0.087]
[1760132033887,1.34008987,3750.0,3739.3,14.5]
[1760132034090,1.33831813,3750.1,3739.4,0.35337744]
[1760132034393,1.39689281,3755.3,3739.5,0.085]
[1760132034693,1.39689281,3755.3,3739.6,0.085]
[1760132034867,1.39689281,3755.3,3739.6,14.585]
[1760132035055,1.39689281,3755.3,3739.7,0.33054024]
[1760132035056,0.99999999,3751.2,3739.7,0.33054024]
[1760132035388,1.30915558,3751.1,3739.8,0.085]
[1760132035560,1.30915558,3751.1,3739.8,0.32332412]
[1760132035761,1.37817146,3755.3,3739.9,14.5]
[1760132035962,1.30774768,3751.2,3739.9,14.5]
[1760132036259,1.39845921,3754.4,3739.6,1.23]
[1760132036478,1.37817146,3755.3,3739.6,1.23]
[1760132036681,1.34892875,3754.2,3739.7,0.2586959]
[1760132036878,1.37817146,3755.3,3739.6,2.46]
[1760132037080,1.37817146,3755.3,3739.7,0.23730887]
[1760132037291,1.37817146,3755.3,3744.7,14.5]
[1760132037618,1.37817146,3755.3,3739.6,2.46]
[1760132038056,1.37817146,3755.3,3739.7,0.2680953]
[1760132038502,1.37817146,3755.3,3739.6,3.69]
[1760132038662,1.37817146,3755.3,3753.7,0.0736006]
[1760132038880,1.37817146,3755.3,3739.6,3.69]
[1760132038881,1.34082012,3752.0,3746.2,0.00159]
[1760132039088,1.3735755,3755.0,3739.6,3.69]
[1760132039303,1.3735755,3755.0,3746.3,0.25326424]
[1760132039807,1.3735755,3755.0,3739.6,4.92]
[1760132040009,1.3735755,3755.0,3739.7,0.16754082]
[1760132040174,1.3735755,3755.0,3744.6,14.5]
[1760132040595,1.3046548,3758.7,3748.5,100.0]
[1760132040912,1.38915004,3779.7,3748.6,0.23208471]
[1760132041204,0.4747,3778.9,3748.6,1.02989021]
[1760132041503,0.13922581,3767.6,3748.7,0.83249786]
[1760132041703,0.2237,3781.4,3766.1,14.5]
[1760132041904,0.13919818,3767.5,3766.2,0.30634118]
[1760132042104,0.13919685,3761.0,3759.2,1.23]
[1760132042307,0.79684978,3784.8,3759.3,0.68103898]
[1760132042510,1.39180739,3778.8,3759.2,1.23]
[1760132042806,0.08922089,3769.0,3759.2,1.23]
[1760132043005,0.4747,3772.2,3761.9,0.30634118]
[1760132043178,0.4747,3773.5,3759.2,1.23]
[1760132043381,1.38117542,3777.8,3760.0,14.5]
[1760132043584,1.32241439,3778.9,3760.0,14.5]
[1760132043908,0.4747,3778.8,3759.2,2.31158781]
[1760132044079,0.4747,3778.7,3759.2,2.31158781]
[1760132044275,0.4747,3778.6,3764.3,14.5]
[1760132044597,0.13921521,3778.8,3764.4,0.40007945]
[1760132044909,0.4747,3778.7,3764.3,1.23]
[1760132045080,0.4747,3778.6,3764.3,1.23]
[1760132045404,1.38641096,3778.4,3764.3,1.23]
[1760132045579,0.15516114,3778.3,3764.3,1.23]
[1760132045778,0.29437635,3778.8,3764.3,1.23]
[1760132045980,0.26872172,3778.7,3764.3,1.23]
[1760132046197,0.13921521,3778.8,3764.3,2.46393777]
[1760132046398,0.13921521,3778.8,3764.4,0.45906073]
[1760132046603,0.13921521,3778.8,3764.3,2.46]
[1760132046801,0.4747,3778.7,3764.4,14.5]
[1760132046996,0.4747,3778.6,3764.4,14.5]
[1760132047201,0.2211321,3778.5,3764.5,0.32040825]
[1760132047418,0.00492773,3779.0,3764.5,0.31518408]
[1760132047715,0.00492773,3779.0,3764.6,0.51679155]
[1760132047916,0.13907754,3778.4,3764.7,0.36183748]
[1760132048123,0.00492773,3779.0,3764.8,0.27964073]
[1760132048323,0.74213935,3778.9,3764.9,14.5]
[1760132048497,0.47962773,3779.0,3764.9,0.6584711]
[1760132048820,0.47962773,3779.0,3764.5,1.23]
[1760132048821,0.4747,3778.9,3764.5,1.23]
[1760132049010,0.4747,3778.8,3765.0,0.23799573]
[1760132049184,0.00390638,3778.7,3765.0,0.23799573]
[1760132049385,0.4747,3778.6,3764.5,2.46]
[1760132049619,0.00492773,3779.0,3764.5,2.46]
[1760132050021,0.00492773,3779.0,3764.6,0.24711741]
[1760132050314,0.00395013,3778.9,3764.6,0.23862843]
[1760132050483,0.4747,3778.8,3764.7,14.84378678]
[1760132050687,0.4747,3778.7,3764.8,0.24930712]
[1760132050884,0.4747,3778.7,3764.9,0.0011]
[1760132051213,0.4747,3778.7,3765.0,0.60566596]
[1760132051396,0.4747,3778.6,3765.1,0.0011]
[1760132051594,0.4747,3778.6,3764.6,1.23]
[1760132051795,0.73654316,3778.5,3764.6,1.23]
[1760132051994,0.4747,3778.4,3764.6,2.46]
[1760132052197,0.4747,3778.3,3764.6,2.46]
[1760132052396,0.00492773,3779.0,3764.6,2.45869187]
[1760132052397,1.36688659,3778.1,3764.6,2.45869187]
[1760132052699,1.35386982,3777.9,3764.6,1.97089538]
[1760132052897,1.34315023,3777.7,3764.6,1.97089538]
[1760132053085,1.30753418,3777.5,3764.6,1.55309538]
[1760132053284,0.00492773,3779.0,3764.6,2.78309538]
[1760132053285,1.35207319,3777.3,3764.6,2.78309538]
[1760132053501,1.3760573,3777.1,3764.6,2.77839538]
[1760132053697,1.38992302,3776.9,3764.6,2.30839538]
[1760132053924,1.34949258,3776.7,3764.6,2.30439757]
[1760132054094,1.84598289,3776.6,3764.6,1.30439757]
[1760132054297,2.64585171,3776.6,3764.5,1.38276544]
[1760132054598,2.64585171,3776.6,3764.5,2.08546544]
[1760132054909,1.56224426,3776.5,3764.5,1.70163063]
[1760132055102,1.36463261,3776.3,3764.5,1.0959251]
[1760132055290,0.26496923,3776.2,3764.5,0.8561647]
[1760132055486,1.59824205,3776.2,3764.5,0.34048513]
[1760132055688,1.31678687,3776.1,3764.5,0.33648632]
[1760132055902,0.00492773,3779.0,3764.5,1.56648632]
[1760132055903,0.99999999,3766.2,3764.5,1.56648632]
[1760132056310,0.28145438,3766.1,3764.5,1.2557551]
[1760132056517,1.34519639,3776.6,3764.5,0.68181602]
[1760132056697,100.0,3772.2,3764.5,0.20490715]
[1760132056903,0.99999999,3766.2,3764.3,2.40223092]
[1760132057102,0.22636772,3772.1,3764.3,2.15547976]
[1760132057308,0.22083672,3766.1,3764.3,3.38147652]
[1760132057493,0.22083672,3766.1,3764.3,2.89078687]
[1760132057705,0.22083672,3766.1,3764.3,2.26747002]
[1760132057902,5.53263672,3766.1,3764.3,1.71919367]
[1760132058223,0.23076387,3766.0,3764.3,1.21579759]
[1760132058526,0.80009921,3770.6,3764.3,0.9124823]
[1760132058709,0.002,3776.7,3764.3,1.85809906]
[1760132058896,0.24266478,3771.3,3764.3,1.85809906]
[1760132059291,0.24266478,3771.3,3764.3,1.5508418]
[1760132059603,5.3081,3771.3,3764.3,1.5508418]
[1760132059794,5.3081,3771.3,3764.4,0.4505]
[1760132060193,5.3081,3771.3,3764.4,0.3113656]
[1760132060390,0.26809647,3771.2,3764.4,0.3113656]
[1760132060621,5.57619647,3771.2,3764.4,0.3113656]
[1760132060923,0.24380038,3771.1,3764.4,0.3113656]
[1760132061123,0.24380038,3771.1,3764.3,2.77207045]
[1760132061124,1.37807786,3771.0,3764.3,2.77207045]
[1760132061301,1.36685938,3770.8,3764.3,4.00207045]
[1760132061507,5.3081,3770.8,3764.3,4.00207045]
[1760132062029,0.27130746,3770.7,3764.3,4.00207045]
[1760132062203,0.23031931,3770.7,3764.3,4.00207045]
[1760132062407,0.22581689,3772.1,3764.3,3.94899472]
[1760132062637,1.36656146,3773.6,3764.3,5.17899472]
[1760132062799,0.23782309,3773.6,3764.3,5.17899472]
[1760132063005,5.3065,3773.6,3764.4,0.4505]
[1760132063330,4.6397,3773.6,3764.4,0.4505]
[1760132063532,4.6397,3773.6,3764.3,5.17899472]
[1760132063704,0.2215,3779.8,3764.3,5.17899472]
[1760132063705,0.457,3778.0,3764.3,5.17899472]
[1760132064034,0.457,3776.6,3764.3,5.93399472]
[1760132064214,0.457,3776.5,3764.3,5.93399472]
[1760132064414,0.457,3776.4,3764.4,0.4505]
[1760132064619,0.18235714,3776.3,3764.4,0.4505]
[1760132064919,1.33327282,3776.2,3764.5,0.4505]
[1760132065109,5.3045,3776.2,3764.5,0.4505]
[1760132065311,5.3045,3776.2,3764.5,1.6805]
[1760132065506,0.15014684,3776.1,3764.6,0.4505]
[1760132065834,0.457,3776.0,3764.5,1.23]
[1760132066010,0.457,3775.9,3764.5,1.23]
[1760132066197,1.37084563,3775.8,3764.6,0.4505]
[1760132066401,5.3045,3775.8,3764.5,1.23]
[1760132066627,0.00391532,3773.0,3764.5,2.46]
[1760132066936,5.3045,3773.0,3764.6,0.31130763]
[1760132067108,5.3045,3773.0,3764.5,2.46]
[1760132067308,0.457,3772.9,3764.5,2.46]
[1760132067505,0.67592522,3773.1,3764.5,2.46]
[1760132067709,0.18808718,3773.1,3764.5,2.46]
[1760132067909,0.64508718,3773.0,3764.5,3.69]
[1760132068112,100.457,3772.9,3764.5,3.38217119]
[1760132068429,0.66102627,3772.8,3764.5,3.38217119]
[1760132068636,0.457,3772.7,3764.5,3.38217119]
[1760132068816,0.71442056,3772.6,3764.5,3.38217119]
[1760132069014,0.457,3772.5,3764.5,3.3781738]
[1760132069214,0.25742056,3772.4,3764.5,4.6081738]
[1760132069425,0.99999999,3769.6,3764.5,4.6081738]
[1760132069736,5.3068,3769.6,3764.5,4.6081738]
[1760132069938,5.3068,3769.6,3764.6,0.3359]
[1760132070149,0.27010359,3769.5,3764.6,0.3359]
[1760132070447,0.27010359,3769.5,3764.5,4.6081738]
[1760132070448,5.3068,3769.5,3764.5,4.6081738]
[1760132070623,5.3068,3769.5,3764.5,5.8381738]
[1760132070814,0.457,3769.4,3764.5,5.8381738]
[1760132071139,0.67568164,3768.3,3764.5,5.3631738]
[1760132071346,104.0,3801.1,3764.6,0.4505]
[1760132071347,1.34519639,3776.6,3764.6,0.4505]
[1760132071546,1.31893696,3776.4,3764.5,5.3631738]
[1760132071850,1.36825856,3776.3,3764.5,5.3631738]
[1760132072140,0.2957,3776.2,3764.6,0.4505]
[1760132072332,0.55486125,3776.1,3764.6,0.4505]
[1760132072533,1.32872529,3775.9,3764.6,0.1136454]
[1760132072844,0.79556605,3770.9,3764.5,6.5931738]
[1760132073026,1.32257944,3770.7,3764.5,6.23665387]
[1760132073229,1.648578,3770.8,3764.5,6.83320935]
[1760132073433,1.648578,3770.8,3764.5,6.13189757]
[1760132073434,0.28474452,3770.8,3764.5,6.13189757]
[1760132073639,1.34480481,3770.7,3764.5,5.69805142]
[1760132073830,0.99999999,3770.0,3764.5,5.2842928]
[1760132074142,100.22510865,3769.9,3764.5,4.81703757]
[1760132074441,6.34947393,3769.9,3764.5,4.60886552]
[1760132074642,0.67675113,3768.6,3764.5,5.66065547]
[1760132074824,5.40934129,3768.6,3764.5,5.66065547]
[1760132075024,5.40934129,3768.6,3764.5,3.83945855]
[1760132076041,5.40934129,3768.6,3764.5,5.06945855]
[1760132076468,0.1417,3764.6,3764.5,3.90545855]
[1760132076630,4.73259016,3764.6,3764.5,2.90555855]
[1760132077054,4.71673148,3764.6,3764.5,2.82355855]
[1760132077226,4.71673148,3764.6,3764.5,4.05355855]
[1760132077426,4.5773136,3764.6,3764.5,4.05355855]
[1760132077630,1.35771586,3763.8,3756.9,0.00159]
[1760132077846,5.93502946,3763.8,3759.2,2.08578867]
[1760132078130,4.5773136,3763.8,3759.2,2.08578867]
[1760132078636,4.5773136,3763.8,3759.2,3.31578867]
[1760132079564,1.58568087,3763.9,3759.3,0.4505]
[1760132080061,1.58568087,3763.9,3759.3,1.6805]
[1760132080247,1.58568087,3763.9,3759.4,0.4505]
[1760132080452,1.58568087,3763.9,3759.4,0.31121465]
[1760132080633,6.90248087,3763.9,3759.4,0.31121465]
[1760132080835,6.90248087,3763.9,3759.3,1.23]
[1760132081031,100.0,3763.8,3759.3,1.23]
[1760132081270,105.3168,3763.8,3759.3,1.23]
[1760132081556,5.3168,3763.8,3759.3,2.3207]
[1760132081758,4.3955,3763.8,3759.3,2.275]
[1760132082143,100.0,3762.3,3759.3,2.275]
[1760132082346,1.38099809,3762.2,3759.3,2.275]
[1760132082545,5.77649809,3762.2,3759.3,2.21589588]
[1760132082740,6.57954108,3762.2,3759.3,2.21589588]
[1760132082943,6.57954108,3762.2,3759.3,3.44589588]
[1760132083150,5.77649809,3762.2,3759.3,3.44589588]
[1760132083460,5.77649809,3762.2,3730.4,10.020081]
[1760132083461,5.77649809,3762.2,3752.2,1.36849422]
[1760132083831,5.77649809,3762.2,3750.9,1.37921476]
[1760132084159,1.39060188,3762.0,3750.9,1.37921476]
[1760132084361,5.78610188,3762.0,3750.9,2.60921476]
[1760132084534,4.3955,3762.0,3751.0,1.38655663]
[1760132084732,4.3955,3762.0,3751.2,1.36959959]
[1760132084932,4.3955,3762.0,3751.4,1.30813885]
[1760132085177,4.3955,3762.0,3751.6,1.32845852]
[1760132085473,4.3955,3762.0,3751.8,1.32165189]
[1760132085638,100.0,3766.4,3752.0,1.30007828]
[1760132085837,100.0,3766.4,3752.2,1.32757468]
[1760132086037,100.0,3766.4,3752.4,1.34231595]
[1760132086237,100.0,3766.4,3752.6,1.34374809]
[1760132086454,0.13952898,3766.5,3752.8,1.33731068]
[1760132086644,0.13952898,3766.5,3752.7,0.4649]
[1760132086645,1.58590749,3766.4,3753.0,1.39065585]
[1760132086848,1.58590749,3766.4,3752.9,0.4649]
[1760132086849,1.36824144,3764.6,3753.2,1.39524538]
[1760132087163,5.3196,3764.6,3753.0,1.39065585]
[1760132087353,5.3196,3764.6,3753.2,1.39524538]
[1760132087664,5.3196,3764.6,3753.0,1.39065585]
[1760132087831,100.0,3761.7,3753.0,1.39065585]
[1760132088033,4.00723173,3761.7,3753.0,1.39065585]
[1760132088239,4.00723173,3761.7,3753.1,1.83079086]
[1760132088435,4.00723173,3761.7,3753.2,0.4649]
[1760132088637,4.00723173,3761.7,3753.0,1.39065585]
[1760132088838,100.0,3761.6,3753.1,1.83329086]
[1760132089035,1.58590749,3761.5,3753.0,1.39065585]
[1760132089242,1.58590749,3761.5,3753.2,1.86264538]
[1760132089243,5.59313922,3761.5,3753.2,1.86264538]
[1760132089462,5.24133591,3761.5,3753.2,0.4674]
[1760132089665,5.24133591,3761.5,3753.1,1.36589086]
[1760132089968,5.24133591,3761.5,3753.2,1.86264538]
[1760132090164,5.24133591,3761.5,3753.3,0.4674]
[1760132090662,5.24133591,3761.5,3753.2,1.39524538]
[1760132090663,3.71633591,3761.5,3753.2,1.39524538]
[1760132091171,0.4371,3769.5,3753.2,1.39524538]
[1760132091345,0.80106167,3765.8,3753.2,2.62524538]
[1760132091553,0.4371,3769.6,3764.6,14.339173]
[1760132091866,0.1395,3771.4,3764.6,14.339173]
[1760132092067,0.99999999,3766.9,3764.6,14.339173]
[1760132092384,6.30909999,3766.9,3764.6,13.826173]
[1760132092684,5.3091,3766.9,3764.6,13.826173]
[1760132092864,0.13966117,3769.5,3764.6,15.056173]
[1760132093180,0.4371,3769.4,3764.6,15.056173]
[1760132093481,0.4371,3769.3,3764.6,14.581173]
[1760132093777,0.4371,3769.2,3764.6,14.29995834]
[1760132093953,0.4371,3769.1,3764.6,14.29995834]
[1760132094150,5.3093,3769.1,3764.6,13.34995834]
[1760132094350,0.002,3765.8,3764.6,14.57995834]
[1760132094568,0.99999999,3765.4,3764.6,13.38965358]
[1760132094759,0.99999999,3765.4,3764.6,12.39000658]
[1760132094760,6.30929999,3765.4,3764.6,12.39000658]
[1760132095081,0.67606724,3765.3,3764.6,12.39000658]
[1760132095281,5.98536724,3765.3,3764.6,12.39000658]
[1760132095488,5.98536724,3765.3,3764.6,12.36680658]
[1760132095661,5.98536724,3765.3,3764.6,13.59680658]
[1760132096163,0.67606724,3765.3,3764.6,13.23240658]
[1760132096684,0.67606724,3765.3,3764.6,13.08628184]
[1760132096871,0.13968868,3765.2,3764.6,13.08628184]
[1760132097060,5.45188868,3765.2,3764.6,14.31628184]
[1760132097680,5.3122,3765.2,3764.6,14.0930427]
[1760132098162,0.1429,3764.7,3764.6,12.7642427]
[1760132098367,5.74729162,3764.7,3764.6,13.9942427]
[1760132098754,5.74729162,3764.7,3764.6,13.9898427]
[1760132098956,4.95196234,3764.7,3764.6,13.9898427]
[1760132099159,3.87357886,3764.7,3764.6,13.9898427]
[1760132099362,3.87357886,3764.7,3764.6,13.8782427]
[1760132099786,3.87357886,3764.7,3764.6,14.96879125]
[1760132100655,3.87357886,3764.7,3764.6,14.78279742]
[1760132100967,3.87357886,3764.7,3764.6,14.74769742]
[1760132101287,3.87357886,3764.7,3764.6,14.62011714]
[1760132101475,3.87357886,3764.7,3764.6,14.35301714]
[1760132101659,3.39857886,3764.7,3764.6,14.82041714]
[1760132101860,2.34047886,3764.7,3764.6,14.82041714]
[1760132102186,0.67606724,3765.3,3764.6,14.35301714]
[1760132102563,0.67606724,3765.3,3764.6,15.52989559]
[1760132102755,0.67606724,3765.3,3764.6,15.39048768]
[1760132103161,0.4371,3765.2,3764.6,14.91548768]
[1760132103382,5.7493,3765.2,3764.6,14.91548768]
[1760132103573,5.3122,3765.2,3764.6,14.14121981]
[1760132103868,5.3122,3765.2,3764.6,15.37121981]
[1760132104076,5.3122,3765.2,3764.6,15.36681981]
[1760132104566,5.3122,3765.2,3764.6,15.36241981]
[1760132105087,5.3122,3765.2,3764.6,13.36182299]
[1760132105391,4.8372,3765.2,3764.7,0.4674]
[1760132105586,4.8372,3765.2,3764.6,14.57572299]
[1760132105760,0.94099977,3765.1,3764.6,14.43624038]
[1760132105960,0.13948545,3765.1,3764.6,13.1326066]
[1760132106268,0.17736724,3765.3,3764.6,13.1197066]
[1760132106480,0.002,3765.8,3764.6,13.1197066]
[1760132106683,0.002,3765.8,3764.6,14.3497066]
[1760132106889,0.002,3765.8,3764.6,13.19251604]
[1760132107099,0.002,3765.8,3764.6,13.17821604]
[1760132107277,5.3138,3765.8,3764.6,13.17821604]
[1760132107476,0.002,3765.8,3764.6,13.17821604]
[1760132107971,0.002,3765.8,3764.6,14.40821604]
[1760132108780,0.002,3765.8,3764.6,14.26883885]
[1760132109288,0.002,3765.8,3764.6,14.18615095]
[1760132109998,0.29219162,3764.9,3764.6,14.18615095]
[1760132110228,0.002,3765.8,3764.6,13.9933403]
[1760132110586,0.4391,3765.8,3764.6,13.85394627]
[1760132110789,0.002,3765.8,3764.6,14.08404627]
[1760132111584,0.002,3765.8,3764.6,12.2161823]
[1760132111778,0.002,3765.8,3764.6,12.07680553]
[1760132112086,0.002,3765.8,3764.6,13.30140553]
[1760132112386,0.002,3765.8,3764.6,13.29490553]
[1760132113512,0.002,3765.8,3764.6,13.29590553]
[1760132113677,0.002,3765.8,3764.7,0.4674]
[1760132113877,1.0,4536.8,3764.7,0.4674]
[1760132113878,0.79980911,3772.1,3764.7,0.4674]
[1760132114099,1.35875335,3771.9,3764.6,14.52590553]
[1760132114294,0.002,3766.6,3764.6,14.38653715]
[1760132114905,0.002,3766.6,3764.7,0.4674]
[1760132115106,0.65614966,3766.2,3764.7,0.45128955]
[1760132115426,0.65614966,3766.2,3764.6,15.28688839]
[1760132115427,0.79664348,3765.8,3764.6,15.28688839]
[1760132115999,0.2266,3764.7,3764.6,14.79898839]
[1760132116317,0.79664348,3765.8,3764.6,14.79898839]
[1760132116522,0.79664348,3765.8,3764.6,16.02898839]
[1760132117023,1.59328696,3765.8,3764.6,15.30658839]
[1760132117334,1.59328696,3765.8,3764.6,14.56844879]
[1760132117535,0.65614966,3766.2,3764.7,0.4535]
[1760132117834,1.76406148,3766.1,3764.7,1.23]
[1760132118132,0.4493,3766.0,3764.7,1.23]
[1760132118334,0.4493,3766.0,3764.7,0.755]
[1760132118498,0.4493,3765.9,3764.7,0.755]
[1760132118807,0.65614966,3766.2,3764.7,0.28]
[1760132119007,0.65614966,3766.2,3764.6,2.53420081]
[1760132119230,0.65614966,3766.2,3764.7,1.23]
[1760132119438,0.65614966,3766.2,3764.7,1.2269]
[1760132119644,0.65614966,3766.2,3764.7,0.21117855]
[1760132119842,0.65614966,3766.2,3764.6,1.74333321]
[1760132120005,0.65614966,3766.2,3764.6,1.74023321]
[1760132120207,1.31476148,3766.1,3764.6,1.74023321]
[1760132120405,0.65614966,3766.2,3764.6,1.74023321]
[1760132120704,0.002,3766.6,3764.6,2.97023321]
[1760132120927,0.4493,3766.5,3764.6,2.58802373]
[1760132121163,0.13932824,3766.1,3764.6,2.11302373]
[1760132121309,0.79664348,3765.8,3764.6,2.11302373]
[1760132121522,0.79664348,3765.8,3764.6,0.7138887]
[1760132121848,0.79664348,3765.8,3764.6,0.6891887]
[1760132122042,0.79664348,3765.8,3764.6,1.9191887]
[1760132122248,0.79664348,3765.8,3764.6,1.9172887]
[1760132122451,0.79664348,3765.8,3764.6,0.53497068]
[1760132123151,1.31754475,3765.7,3764.6,0.53497068]
[1760132123368,1.59328696,3765.8,3764.6,1.76497068]
[1760132123517,1.59328696,3765.8,3764.6,1.73847068]
[1760132123916,1.59328696,3765.8,3764.6,1.59923944]
[1760132124130,1.59328696,3765.8,3764.6,1.44373944]
[1760132124339,0.2163,3765.7,3764.6,1.44373944]
[1760132124851,0.2163,3765.7,3764.6,2.67183944]
[1760132125304,0.2163,3765.7,3764.6,0.6685507]
[1760132125456,1.38820335,3765.6,3764.6,0.6685507]
[1760132125641,1.59328696,3765.8,3764.6,0.6685507]
[1760132126143,1.59328696,3765.8,3764.6,1.8985507]
[1760132126338,1.59328696,3765.8,3764.6,1.8966507]
[1760132126724,1.59328696,3765.8,3764.6,1.8947507]
[1760132126931,1.59328696,3765.8,3763.8,2.3e-07]
[1760132127128,1.59328696,3765.8,3759.1,0.001]
[1760132127329,0.13933559,3765.7,3759.1,1.214]
[1760132127550,0.13933559,3765.7,3759.1,1.208]
[1760132127862,1.59328696,3765.8,3759.1,1.208]
[1760132128830,1.59328696,3765.8,3759.2,0.4535]
[1760132129031,1.59328696,3765.8,3759.1,2.438]
[1760132130149,1.59328696,3765.8,3759.1,3.52876539]
[1760132130951,1.59328696,3765.8,3759.1,3.51797308]
[1760132131462,1.59328696,3765.8,3759.1,3.51897308]
[1760132131665,1.59328696,3765.8,3759.1,4.74897308]
[1760132131868,1.59528696,3765.8,3759.1,4.74897308]
[1760132132271,0.15753657,3765.7,3759.1,4.74897308]
[1760132132839,0.15753657,3765.7,3759.1,4.7334252]
[1760132133065,0.15753657,3765.7,3759.1,5.82416645]
[1760132133363,0.2163,3759.2,3759.1,5.68656645]
[1760132133663,0.1212,3762.2,3759.1,5.68656645]
[1760132133845,1.59528696,3765.8,3759.1,5.68656645]
[1760132134051,1.59528696,3765.8,3759.2,0.4535]
[1760132134249,0.002,3766.2,3759.3,0.221]
[1760132134780,0.10132586,3774.4,3759.4,0.4535]
[1760132134959,0.2163,3769.3,3759.4,0.4535]
[1760132135141,0.79664348,3765.8,3759.4,0.4535]
[1760132135764,0.2163,3781.4,3759.4,0.4535]
[1760132135765,1.30090827,3779.0,3759.4,0.4535]
[1760132135982,1.30275665,3778.8,3759.4,1.23]
[1760132136279,1.33799489,3778.6,3759.5,0.4535]
[1760132136587,1.3159001,3778.4,3759.5,0.4535]
[1760132136788,1.32751379,3778.2,3759.5,0.4535]
[1760132136990,0.4493,3778.3,3759.5,0.4535]
[1760132136991,0.45857229,3778.1,3759.5,0.4535]
[1760132137194,0.65992209,3773.6,3759.5,1.6835]
[1760132137395,0.46809243,3773.5,3759.5,1.23]
[1760132137561,0.4493,3773.4,3759.5,1.23]
[1760132137759,1.30298467,3773.2,3759.5,1.23]
[1760132138103,0.60683657,3773.1,3759.5,1.23]
[1760132138304,0.29219162,3772.0,3759.5,1.23]
[1760132138472,0.6656,3771.9,3759.5,1.23]
[1760132138662,0.4493,3771.8,3759.5,2.46]
[1760132138866,0.4493,3771.7,3759.5,2.46]